bitfinex/quotes_ETHUSD_20250807
["timestamp","ask_amount","ask_price","bid_price","bid_amount"]
[1754603377507,3.49489571,3883.2,3883.1,0.041]
[1754603377715,7.07708565,3883.2,3883.1,0.041]
[1754603378002,7.04489571,3883.2,3883.1,0.041]
[1754603378202,3.12539467,3882.9,3882.8,0.001]
[1754603378402,6.1575871,3882.9,3882.8,0.001]
[1754603378603,7.04509467,3882.9,3882.8,0.001]
[1754603379805,7.17389467,3882.9,3882.8,0.001]
[1754603382878,7.17389467,3882.9,3882.6,0.001]
[1754603382879,3.12552733,3882.7,3882.6,0.001]
[1754603383084,7.52752142,3882.7,3882.6,0.001]
[1754603383387,8.41502733,3882.7,3882.6,0.001]
[1754603385302,3.1257927,3882.3,3882.2,0.001]
[1754603385589,6.2545927,3882.3,3882.2,0.001]
[1754603385798,6.7075927,3882.3,3882.2,0.001]
[1754603385997,7.1793927,3882.3,3882.2,0.001]
[1754603386396,11.4113927,3882.3,3882.2,0.001]
[1754603388786,10.9395927,3882.3,3882.2,0.001]
[1754603390392,11.4113927,3882.3,3882.2,0.001]
[1754603390914,11.4113927,3882.3,3882.0,0.001]
[1754603390915,2.57585904,3882.2,3882.0,0.001]
[1754603391090,2.60805727,3882.2,3882.0,0.001]
[1754603391286,3.53285727,3882.2,3882.1,1e-08]
[1754603391510,6.53285727,3882.2,3882.1,1e-08]
[1754603391683,6.50065904,3882.2,3882.1,1e-08]
[1754603391888,6.02885904,3882.2,3882.1,1e-08]
[1754603392088,6.02885904,3882.2,3880.2,2.57716834]
[1754603392089,3.55,3880.5,3879.5,0.4656]
[1754603392305,3.55,3880.5,3879.1,0.04]
[1754603392306,2.57718674,3880.2,3879.7,0.4656]
[1754603392511,3.0,3880.5,3879.4,0.456]
[1754603392712,4.228,3880.4,3879.4,2.577711]
[1754603393019,0.55,3881.1,3880.2,0.4656]
[1754603393221,2.57679259,3880.8,3880.2,0.4656]
[1754603393521,4.226,3880.7,3880.2,0.4656]
[1754603393701,4.226,3880.7,3880.2,0.9216]
[1754603393896,2.57665672,3881.0,3880.3,0.4656]
[1754603393897,2.57666456,3881.0,3880.3,0.4656]
[1754603394216,4.225,3880.9,3880.3,0.9216]
[1754603394418,2.57679685,3880.8,3880.4,0.4656]
[1754603394591,2.57679685,3880.8,3880.5,0.4656]
[1754603394919,2.57679685,3880.8,3880.6,0.4656]
[1754603395123,2.57679685,3880.8,3880.1,0.04]
[1754603395328,4.225,3880.9,3880.7,0.4656]
[1754603395822,4.225,3880.9,3880.3,3.03310428]
[1754603395989,4.225,3880.9,3880.8,0.4656]
[1754603397532,4.221,3880.9,3880.1,0.04]
[1754603397829,2.57686362,3880.7,3880.5,0.4656]
[1754603398034,4.215,3880.6,3880.1,0.04]
[1754603398410,4.215,3880.6,3880.1,0.496]
[1754603398735,4.215,3880.6,3880.2,0.9216]
[1754603398903,4.215,3880.6,3880.2,0.456]
[1754603399233,4.215,3880.6,3880.3,0.4656]
[1754603399527,2.5767917,3880.8,3880.3,0.4656]
[1754603399736,4.214,3880.7,3880.3,0.4656]
[1754603400436,2.5767917,3880.8,3880.3,0.4656]
[1754603400633,4.21,3880.7,3880.3,0.4656]
[1754603400828,4.21,3880.7,3880.4,3.4985904]
[1754603401021,4.21,3880.7,3880.5,0.9216]
[1754603401535,4.21,3880.7,3880.1,0.04]
[1754603401536,4.21,3880.7,3880.2,2.57718674]
[1754603401837,4.21,3880.7,3880.6,0.9216]
[1754603403210,4.21,3880.7,3880.6,0.4656]
[1754603404452,4.3388,3880.7,3880.3,0.4656]
[1754603404736,4.3388,3880.7,3880.1,2.74605227]
[1754603404937,4.3388,3880.7,3880.4,0.4656]
[1754603405123,4.3388,3880.7,3880.1,2.74605227]
[1754603405124,4.3388,3880.7,3880.1,0.1688]
[1754603405301,4.3388,3880.7,3880.1,0.6344]
[1754603405497,6.91565477,3880.7,3880.1,0.6344]
[1754603405701,4.3388,3880.7,3880.1,3.21163652]
[1754603406434,6.91565817,3880.7,3880.1,0.6344]
[1754603406814,6.91565817,3880.7,3880.1,3.21165046]
[1754603407016,6.78685817,3880.7,3880.1,0.5056]
[1754603407217,0.1288,3880.5,3880.1,0.5056]
[1754603407412,4.191,3880.4,3880.1,0.04]
[1754603407814,0.453,3880.3,3880.1,0.04]
[1754603408013,2.57718674,3880.2,3880.1,0.04]
[1754603408215,3.04898674,3880.2,3880.1,0.04]
[1754603408404,3.50198674,3880.2,3880.1,0.04]
[1754603409025,3.53420157,3880.2,3880.1,0.04]
[1754603409216,3.50198674,3880.2,3880.1,0.04]
[1754603409414,6.53420157,3880.2,3880.1,0.04]
[1754603409739,6.53420157,3880.2,3879.5,0.001]
[1754603409740,2.57758531,3879.6,3879.5,0.001]
[1754603409940,2.5778511,3879.2,3879.1,1e-08]
[1754603410140,5.5778511,3879.2,3879.1,1e-08]
[1754603410332,10.2288511,3879.2,3879.1,1e-08]
[1754603410839,10.7006511,3879.2,3879.1,1e-08]
[1754603411136,11.4755111,3879.2,3879.1,1e-08]
[1754603411535,12.0255111,3879.2,3879.1,1e-08]
[1754603412744,2.5785158,3878.2,3878.1,0.04]
[1754603413046,9.7755158,3878.2,3878.1,0.04]
[1754603413206,10.7003158,3878.2,3878.1,0.04]
[1754603414244,11.2503158,3878.2,3878.1,0.04]
[1754603415027,11.2503158,3878.2,3878.1,1e-08]
[1754603415552,6.12918085,3877.2,3877.1,0.04]
[1754603415709,10.32418085,3877.2,3877.1,0.04]
[1754603416033,11.24338085,3877.2,3877.1,0.04]
[1754603417245,6.02658085,3877.2,3877.1,0.04]
[1754603417545,10.21958085,3877.2,3877.1,0.04]
[1754603417715,9.77218085,3877.2,3877.1,0.04]
[1754603419049,5.57918085,3877.2,3877.1,0.04]
[1754603419249,10.23788085,3877.2,3877.1,0.04]
[1754603420431,10.36668085,3877.2,3877.1,0.04]
[1754603420727,10.36368085,3877.2,3877.1,0.04]
[1754603420933,6.17668085,3877.2,3877.1,0.5087]
[1754603421124,10.35968085,3877.2,3877.1,0.5087]
[1754603421737,6.17668085,3877.2,3877.1,0.5087]
[1754603421938,9.89098085,3877.2,3877.1,0.5087]
[1754603422144,0.5087,3877.3,3877.2,2.57918085]
[1754603422320,0.58219347,3879.0,3877.5,2.5789813]
[1754603422321,4.189,3877.7,3877.5,2.5789813]
[1754603422521,4.189,3877.6,3877.5,2.5789813]
[1754603423064,0.1288,3877.8,3877.7,2.57884828]
[1754603423232,0.1288,3878.2,3878.0,2.57862642]
[1754603423548,0.1288,3878.2,3877.1,0.04]
[1754603423549,4.188,3878.1,3877.1,3.07523279]
[1754603423849,0.1288,3877.3,3877.1,0.04]
[1754603424047,4.188,3877.2,3877.1,0.04]
[1754603424253,4.188,3877.2,3877.1,0.496]
[1754603424427,4.193,3877.4,3877.3,2.57911433]
[1754603424744,0.1288,3877.8,3877.6,2.57885407]
[1754603424919,4.193,3877.7,3877.6,2.57885407]
[1754603425319,4.193,3877.7,3877.6,2.70765407]
[1754603425529,4.193,3877.7,3877.6,3.63235407]
[1754603426949,4.192,3878.0,3877.8,2.57875772]
[1754603427157,4.192,3878.0,3877.9,0.4687]
[1754603431547,4.192,3878.0,3877.8,2.57877302]
[1754603431749,4.192,3878.0,3877.6,2.7077067]
[1754603432064,4.192,3878.0,3877.7,2.57884547]
[1754603432263,4.192,3878.0,3877.8,2.5787738]
[1754603432428,0.1288,3878.2,3877.8,2.5787738]
[1754603432628,4.174,3877.9,3877.7,3.04753906]
[1754603432852,4.174,3877.9,3877.7,2.57883906]
[1754603433169,4.174,3877.9,3877.8,0.4687]
[1754603434579,4.174,3877.9,3877.6,2.70769192]
[1754603434870,4.174,3877.9,3877.5,0.001]
[1754603435246,4.6214,3877.9,3877.5,0.001]
[1754603436077,4.174,3877.9,3877.5,0.001]
[1754603436238,4.6214,3877.9,3877.5,0.001]
[1754603436437,4.6214,3877.9,3877.5,2.57997267]
[1754603437277,4.6214,3877.9,3877.5,0.001]
[1754603439265,4.174,3877.9,3877.5,2.57997972]
[1754603439471,4.174,3877.9,3877.5,3.04867972]
[1754603440367,4.174,3877.9,3877.5,0.4697]
[1754603440733,4.174,3877.9,3877.5,3.04867269]
[1754603442157,0.2,3878.0,3877.6,0.4687]
[1754603442358,0.2,3878.0,3877.9,2.57871528]
[1754603442678,0.2,3878.0,3877.9,3.04741528]
[1754603444158,0.2,3878.0,3877.9,2.57871528]
[1754603444462,0.2,3878.0,3877.5,0.001]
[1754603444463,0.2,3878.0,3877.8,2.57877269]
[1754603445481,4.145,3877.9,3877.8,2.57877269]
[1754603446983,0.2,3878.0,3877.9,3.12871528]
[1754603447152,0.2,3878.0,3877.9,4.06351528]
[1754603450586,0.2,3878.0,3877.9,8.19751528]
[1754603450964,0.2,3878.0,3877.9,3.64231528]
[1754603451171,0.2,3878.0,3877.9,3.19651528]
[1754603451491,0.2,3878.0,3877.9,2.70751528]
[1754603453280,0.2,3878.0,3877.9,2.57871528]
[1754603453480,0.2,3878.0,3877.9,2.70751528]
[1754603454769,0.2,3878.0,3877.9,2.57871528]
[1754603455107,1.1232,3878.0,3877.8,0.1288]
[1754603455301,0.2,3878.0,3877.7,2.57880026]
[1754603455498,0.9232,3877.9,3877.7,2.57880026]
[1754603455800,0.9232,3877.8,3877.6,2.70769325]
[1754603455996,0.9232,3877.8,3877.7,2.57884828]
[1754603456161,0.4491,3877.7,3877.6,2.70765176]
[1754603456361,0.4491,3877.7,3877.6,0.1288]
[1754603456661,0.9232,3877.7,3877.6,0.1288]
[1754603457068,0.9232,3877.7,3877.5,0.001]
[1754603457409,0.9232,3877.6,3877.5,0.001]
[1754603458917,5.0442,3877.6,3877.5,0.001]
[1754603461507,7.75191479,3877.6,3877.5,0.001]
[1754603462300,10.75191479,3877.6,3877.5,0.001]
[1754603463074,30.24304624,3877.6,3877.5,0.001]
[1754603463476,5.57918085,3877.2,3877.1,0.04]
[1754603463694,10.24118085,3877.2,3877.1,0.04]
[1754603463905,11.29318085,3877.2,3877.1,0.04]
[1754603464212,6.12924737,3877.1,3877.0,0.001]
[1754603464714,7.05244737,3877.1,3877.0,0.001]
[1754603465082,5.5793139,3877.0,3876.9,1e-08]
[1754603465276,6.6313139,3877.0,3876.9,1e-08]
[1754603465490,10.7413139,3877.0,3876.9,1e-08]
[1754603465818,11.2913139,3877.0,3876.9,1e-08]
[1754603466312,4.109,3877.0,3876.9,1e-08]
[1754603466498,4.109,3877.0,3876.9,3.51418044]
[1754603466700,4.109,3877.5,3876.9,0.93480001]
[1754603466921,4.109,3877.6,3877.4,2.57904781]
[1754603467291,0.002,3878.2,3877.5,0.489]
[1754603467506,0.002,3878.2,3877.4,0.4458]
[1754603467507,4.109,3877.9,3877.6,0.489]
[1754603467688,0.002,3878.2,3877.9,2.57871528]
[1754603468013,4.309,3878.0,3877.9,3.06771528]
[1754603468690,4.309,3878.0,3877.0,2.5792938]
[1754603468913,4.309,3878.0,3877.2,2.57915366]
[1754603469208,4.309,3878.0,3877.3,2.57910635]
[1754603469409,0.95543394,3877.9,3877.0,0.489]
[1754603469577,3.53416092,3877.9,3877.0,0.489]
[1754603469777,2.57878433,3877.8,3877.0,3.06831223]
[1754603470020,2.57885248,3877.7,3876.9,2.57936975]
[1754603470204,4.107,3877.6,3876.9,2.57936975]
[1754603470713,4.107,3877.6,3877.0,2.57930288]
[1754603471220,4.5561,3877.6,3877.0,2.57930288]
[1754603471720,4.107,3877.6,3877.0,2.57930288]
[1754603471922,0.95543726,3877.5,3876.9,1e-08]
[1754603472100,2.5793139,3877.0,3876.9,1e-08]
[1754603472301,4.104,3877.0,3876.9,1e-08]
[1754603472619,5.0272,3877.0,3876.9,1e-08]
[1754603473122,7.6065139,3877.0,3876.9,1e-08]
[1754603473690,10.6065139,3877.0,3876.9,1e-08]
[1754603474888,11.1565139,3877.0,3876.9,1e-08]
[1754603475322,0.55,3876.6,3876.1,0.041]
[1754603475624,5.57984624,3876.2,3876.1,0.041]
[1754603475792,9.69484624,3876.2,3876.1,0.041]
[1754603475992,10.64184624,3876.2,3876.1,0.041]
[1754603476419,3.13004592,3875.9,3875.8,1e-08]
[1754603476732,10.40609649,3875.9,3875.8,1e-08]
[1754603476904,10.37384592,3875.9,3875.8,1e-08]
[1754603477103,11.32084592,3875.9,3875.8,1e-08]
[1754603477783,6.13051197,3875.2,3875.1,1e-08]
[1754603478002,29.31644342,3875.2,3875.1,1e-08]
[1754603478201,30.26344342,3875.2,3875.1,1e-08]
[1754603478777,2.58117804,3874.2,3874.1,0.04]
[1754603479047,10.40624276,3874.2,3874.1,0.04]
[1754603479227,11.32097804,3874.2,3874.1,0.04]
[1754603480146,15.32097804,3874.2,3874.1,0.04]
[1754603480443,18.87850938,3873.9,3873.8,1e-08]
[1754603480603,2.58184446,3873.2,3873.1,0.04]
[1754603480807,29.21097591,3873.2,3873.1,0.04]
[1754603481112,3.13191113,3873.1,3873.0,1e-08]
[1754603481332,5.58251123,3872.2,3872.1,0.04]
[1754603481645,9.86331123,3872.2,3872.1,0.04]
[1754603481799,2.58264462,3872.0,3871.1,0.04]
[1754603481999,3.0,3872.1,3871.1,0.04]
[1754603482000,0.1288,3871.2,3871.1,0.04]
[1754603482200,9.86597834,3871.2,3871.1,0.04]
[1754603482429,7.2828,3871.2,3871.1,0.04]
[1754603482633,10.81297834,3871.2,3871.1,0.04]
[1754603483031,10.81297834,3871.2,3871.1,1e-08]
[1754603483345,11.36297834,3871.2,3871.1,1e-08]
[1754603483726,15.36297834,3871.2,3871.1,1e-08]
[1754603484715,3.13384579,3870.2,3870.1,1e-08]
[1754603484916,10.29084579,3870.2,3870.1,1e-08]
[1754603485121,11.23784579,3870.2,3870.1,1e-08]
[1754603487121,7.08084579,3870.2,3870.1,1e-08]
[1754603487326,6.74784579,3870.2,3870.1,1e-08]
[1754603487736,4.164,3870.2,3870.1,1e-08]
[1754603488059,6.78014386,3870.2,3870.1,1e-08]
[1754603488361,7.21484579,3870.2,3870.1,1e-08]
[1754603488564,10.21484579,3870.2,3870.1,1e-08]
[1754603488861,11.24484579,3870.2,3870.1,1e-08]
[1754603489064,15.24484579,3870.2,3870.1,1e-08]
[1754603489925,14.76384579,3870.2,3870.1,1e-08]
[1754603490147,6.58384579,3870.2,3870.1,1e-08]
[1754603490357,8.162,3870.2,3870.1,0.45210001]
[1754603490574,4.0,3870.2,3870.1,0.90810001]
[1754603490726,4.162,3870.2,3870.1,0.90810001]
[1754603491063,6.198,3871.3,3870.2,2.58379189]
[1754603491224,6.198,3871.3,3870.3,0.9081]
[1754603491422,7.52178205,3871.2,3870.4,0.4521]
[1754603491628,2.58332472,3871.0,3870.4,0.4521]
[1754603491821,4.162,3871.2,3870.4,0.4521]
[1754603492125,4.162,3871.2,3870.5,0.456]
[1754603492328,4.162,3871.2,3871.1,2.58324507]
[1754603492559,1.02466847,3871.8,3871.1,0.9081]
[1754603492725,1.02466847,3871.8,3871.7,2.58284474]
[1754603493063,1.02466847,3871.8,3871.7,3.49094474]
[1754603495364,1.02466847,3871.8,3871.7,6.49094474]
[1754603495724,0.04,3872.9,3872.6,2.58224448]
[1754603495926,0.1688,3872.9,3872.8,2.58211113]
[1754603496129,0.1288,3873.4,3873.3,2.58177781]
[1754603496324,0.1288,3873.8,3873.4,2.58171115]
[1754603496562,0.1288,3873.8,3873.7,2.58151121]
[1754603496763,0.1288,3873.8,3873.5,3.48968632]
[1754603496937,0.1288,3873.8,3873.6,0.4521]
[1754603497489,4.153,3873.7,3873.6,0.4521]
[1754603498263,4.153,3873.7,3873.6,3.03367786]
[1754603498563,4.153,3873.7,3873.6,3.48967786]
[1754603498782,0.1288,3873.8,3873.7,2.58151121]
[1754603498931,4.149,3874.1,3873.8,2.58144457]
[1754603499126,0.1688,3873.9,3873.8,3.48954457]
[1754603500069,0.04,3873.9,3873.8,3.48954457]
[1754603502365,0.04,3874.9,3874.6,2.58091157]
[1754603502538,0.04,3874.9,3874.8,2.70957836]
[1754603502962,0.04,3874.9,3874.8,3.61767836]
[1754603503464,0.04,3874.9,3874.8,4.16767836]
[1754603503647,1e-08,3874.9,3874.8,7.16767836]
[1754603505067,1e-08,3874.9,3874.8,7.03887836]
[1754603506173,1e-08,3874.9,3874.8,11.17287836]
[1754603506537,1e-08,3874.9,3874.8,3.4521]
[1754603506874,1e-08,3874.9,3874.8,0.4852]
[1754603507947,1e-08,3874.9,3874.4,2.5810448]
[1754603508149,1e-08,3874.9,3874.6,2.58090419]
[1754603508350,1e-08,3874.9,3874.8,2.58077836]
[1754603508774,1e-08,3874.9,3874.8,3.51867836]
[1754603509690,1e-08,3874.9,3874.8,3.06597836]
[1754603510260,1e-08,3874.9,3874.8,3.51867836]
[1754603510654,1e-08,3874.9,3874.8,3.06597836]
[1754603510849,1e-08,3874.9,3874.4,3.0]
[1754603511070,0.4432,3874.8,3874.3,2.58105754]
[1754603511380,0.4432,3874.8,3873.6,4.5797]
[1754603511381,0.926,3874.7,3873.9,2.58136378]
[1754603511568,0.03226139,3874.6,3873.9,2.58136378]
[1754603511773,0.926,3874.7,3873.7,2.5815093]
[1754603511774,0.926,3874.7,3874.0,2.58130662]
[1754603511976,0.03226139,3874.6,3874.0,2.58130662]
[1754603512151,3.5068646,3874.7,3873.9,2.58136811]
[1754603512351,3.5068646,3874.7,3874.0,2.58130584]
[1754603512780,0.03226139,3874.6,3874.1,2.58123022]
[1754603512983,0.926,3874.5,3874.1,2.58123022]
[1754603513280,0.03225972,3874.8,3874.1,2.58123022]
[1754603513482,0.926,3874.4,3874.0,2.58130002]
[1754603514074,0.926,3874.4,3873.9,2.58135601]
[1754603514582,0.4828,3874.4,3873.9,2.58135601]
[1754603514747,0.4432,3874.3,3873.9,2.58135601]
[1754603514948,0.4432,3874.3,3873.9,2.71015601]
[1754603515378,0.926,3874.3,3873.9,2.71015601]
[1754603515587,0.4432,3874.2,3873.9,0.1288]
[1754603515789,0.47546472,3874.2,3873.8,0.1288]
[1754603515992,4.59246472,3874.2,3873.8,0.1288]
[1754603516283,0.4432,3874.1,3873.8,0.1288]
[1754603516479,4.63206472,3874.2,3873.8,0.1288]
[1754603516480,0.926,3874.0,3873.8,0.1288]
[1754603516685,0.926,3874.0,3873.8,2.71023266]
[1754603517090,0.926,3874.0,3873.8,0.1288]
[1754603518196,0.926,3874.0,3873.7,2.71029714]
[1754603518398,0.4432,3874.0,3873.7,2.71029714]
[1754603519079,0.4432,3874.0,3873.7,0.1288]
[1754603519397,0.4432,3874.0,3873.9,2.58137793]
[1754603520402,0.4432,3874.0,3873.8,2.58143697]
[1754603521299,0.4432,3874.0,3873.9,2.58137793]
[1754603521802,4.117,3874.2,3873.9,2.58137793]
[1754603522269,4.117,3874.2,3873.9,2.58237793]
[1754603522474,4.5602,3874.2,3873.9,2.58237793]
[1754603522694,4.117,3874.2,3873.9,2.58237793]
[1754603522865,0.6116,3874.3,3873.9,0.001]
[1754603522866,0.1288,3874.3,3873.9,0.001]
[1754603523207,0.1288,3874.3,3874.2,2.58117804]
[1754603523408,4.105,3874.8,3874.5,2.58095934]
[1754603523591,4.105,3874.8,3874.4,2.58103129]
[1754603523794,0.1288,3874.5,3874.4,2.58103129]
[1754603524203,0.1288,3874.5,3874.4,3.06623129]
[1754603525706,1e-08,3874.9,3874.7,2.58081705]
[1754603525907,4.104,3874.8,3874.7,2.58081705]
[1754603526210,4.2328,3874.8,3874.5,0.4852]
[1754603526385,4.65608,3874.8,3874.5,3.06616115]
[1754603526588,4.65608,3874.8,3874.5,0.4852]
[1754603526909,4.65608,3874.8,3874.4,2.58100226]
[1754603527423,4.099,3874.7,3874.4,2.58099965]
[1754603527707,4.5422,3874.7,3874.4,2.58099965]
[1754603527890,0.557708,3874.6,3874.4,2.58099965]
[1754603528986,0.557708,3874.6,3874.1,0.1288]
[1754603529193,0.926,3874.5,3874.1,2.71003073]
[1754603529382,0.926,3874.4,3874.3,2.58105756]
[1754603529584,0.557708,3874.6,3874.3,2.58105756]
[1754603529778,0.5711508,3874.5,3874.4,2.5810448]
[1754603533014,4.089,3874.5,3874.4,3.0662448]
[1754603533514,4.2178,3874.8,3874.5,2.58095693]
[1754603534612,4.2178,3874.8,3874.6,2.58089818]
[1754603534817,4.087,3874.7,3874.6,2.58089818]
[1754603535040,4.087,3874.7,3874.6,3.05459818]
[1754603535741,4.9917,3874.7,3874.3,2.58111142]
[1754603535886,0.4485,3874.6,3874.4,2.58102028]
[1754603536090,0.51205,3874.6,3874.1,0.1288]
[1754603536286,0.51205,3874.6,3873.9,0.4747]
[1754603536287,0.1288,3874.4,3874.0,2.58124832]
[1754603536483,4.082,3874.3,3874.1,2.58124112]
[1754603536707,4.601755,3874.3,3874.1,2.58124112]
[1754603537595,0.519755,3874.3,3874.1,2.58124112]
[1754603537791,4.081,3874.2,3874.1,2.58124467]
[1754603538820,4.081,3874.2,3873.9,0.1298]
[1754603539025,4.081,3874.2,3874.1,2.58124467]
[1754603539321,1e-08,3874.9,3874.1,0.4737]
[1754603539524,4.077,3874.8,3874.7,2.58084496]
[1754603540732,4.077,3874.8,3874.7,3.05454496]
[1754603541129,1e-08,3874.9,3874.7,3.05454496]
[1754603541331,1e-08,3874.9,3874.8,3.05447836]
[1754603541631,1e-08,3874.9,3874.8,6.51047836]
[1754603543028,1e-08,3874.9,3874.8,7.06047836]
[1754603543230,1e-08,3874.9,3874.8,6.51047836]
[1754603543396,1e-08,3874.9,3874.8,7.06047836]
[1754603544334,3.0,3877.5,3874.8,7.06047836]
[1754603544335,0.04,3876.9,3875.0,0.55]
[1754603544559,0.04,3876.9,3876.8,2.57944696]
[1754603544704,1e-08,3876.9,3876.8,5.57944696]
[1754603545026,1e-08,3877.0,3876.9,6.12938043]
[1754603545231,1e-08,3877.6,3877.3,2.57911433]
[1754603545398,1e-08,3877.6,3877.5,3.1289813]
[1754603545598,1e-08,3877.6,3877.5,6.1289813]
[1754603545799,1e-08,3877.6,3877.5,6.6026813]
[1754603546235,1e-08,3877.6,3877.5,7.0586813]
[1754603547313,1e-08,3877.6,3877.5,6.0526813]
[1754603547521,1e-08,3877.6,3877.5,5.5789813]
[1754603548613,0.44850001,3877.6,3877.5,5.5789813]
[1754603548834,0.90670001,3877.6,3877.5,5.5789813]
[1754603549145,0.90670001,3877.6,3877.5,0.1288]
[1754603549318,0.90670001,3877.6,3877.1,3.0]
[1754603549514,0.9067,3877.5,3877.3,0.1288]
[1754603550239,0.4485,3877.4,3877.3,0.1288]
[1754603551616,0.9067,3877.4,3877.3,2.70791433]
[1754603553047,0.4485,3877.4,3877.3,0.1288]
[1754603553651,0.4485,3877.4,3877.3,2.70791433]
[1754603553864,0.4485,3877.4,3877.3,2.57911433]
[1754603554064,0.9067,3877.4,3877.3,2.57911433]
[1754603554360,1e-08,3877.6,3877.2,2.7079647]
[1754603554552,0.44850001,3877.6,3877.3,2.57909443]
[1754603554756,0.9067,3877.5,3877.3,2.57909443]
[1754603554954,0.4485,3877.5,3877.3,2.57909443]
[1754603555124,0.9067,3877.5,3877.3,2.57909443]
[1754603556556,0.4485,3877.5,3877.4,2.57904781]
[1754603557589,0.9067,3877.5,3877.4,2.57904781]
[1754603557761,0.4485,3877.5,3877.4,2.57904781]
[1754603558565,4.5245,3877.5,3877.4,2.57904781]
[1754603559358,4.076,3877.5,3877.4,2.57904781]
[1754603559670,4.991,3877.5,3877.1,0.1288]
[1754603559824,0.9067,3877.4,3877.1,0.1288]
[1754603560029,0.4665,3877.5,3877.4,2.57904781]
[1754603560325,4.9777,3877.5,3877.1,2.70804162]
[1754603560528,0.4485,3877.4,3877.1,2.70804162]
[1754603560734,4.071,3877.5,3877.4,2.57904781]
[1754603560960,4.5195,3877.5,3877.4,2.57904781]
[1754603561326,4.9777,3877.5,3877.4,2.57904781]
[1754603561657,4.9777,3877.5,3877.1,2.70802295]
[1754603561832,4.5195,3877.5,3877.4,2.57904781]
[1754603562165,4.9747,3877.5,3877.4,2.57898478]
[1754603562360,1e-08,3877.6,3877.5,2.5789813]
[1754603562659,4.06800001,3877.6,3877.5,2.5789813]
[1754603562957,4.51650001,3877.6,3877.5,2.5789813]
[1754603563161,4.97470001,3877.6,3877.5,2.5789813]
[1754603563364,0.90670001,3877.6,3877.5,2.5789813]
[1754603563661,4.97470001,3877.6,3877.5,2.5789813]
[1754603563862,0.90670001,3877.6,3877.5,2.5789813]
[1754603564051,4.97370001,3877.6,3877.5,2.5789813]
[1754603564758,4.97270001,3877.6,3877.5,2.5789813]
[1754603566644,4.97270001,3877.6,3877.4,2.70784667]
[1754603567731,0.915,3877.5,3877.4,2.70783887]
[1754603567930,0.4301,3877.5,3877.4,0.1288]
[1754603568137,0.4301,3877.5,3877.4,2.70784781]
[1754603568980,0.915,3877.5,3877.4,0.1288]
[1754603569277,0.915,3877.5,3877.3,2.70791392]
[1754603569480,0.4849,3877.5,3877.4,2.57904781]
[1754603569981,0.915,3877.5,3877.4,2.57904781]
[1754603570583,0.4301,3877.5,3877.4,2.57904781]
[1754603571080,0.4301,3877.5,3877.3,2.70789877]
[1754603571950,4.063,3877.4,3877.3,2.70789877]
[1754603578688,4.063,3877.4,3877.3,3.18769877]
[1754603578981,4.063,3877.4,3877.3,2.70789877]
[1754603582486,4.063,3877.4,3877.3,3.18769877]
[1754603582858,4.063,3877.4,3877.3,2.70789877]
[1754603584796,1e-08,3877.6,3877.3,2.70789877]
[1754603585090,1e-08,3877.6,3877.5,2.5789813]
[1754603585293,4.06300001,3877.6,3877.5,2.7077813]
[1754603585860,4.06300001,3877.6,3877.5,3.1875813]
[1754603586060,4.06300001,3877.6,3877.5,2.7077813]
[1754603587396,1e-08,3877.6,3877.5,2.7077813]
[1754603587637,4.06200001,3877.6,3877.5,2.7077813]
[1754603587806,1e-08,3877.6,3877.5,3.1875813]
[1754603588103,4.06200001,3877.6,3877.5,2.7077813]
[1754603588270,4.49210001,3877.6,3877.5,2.7077813]
[1754603588866,4.06200001,3877.6,3877.5,2.7077813]
[1754603590295,4.06200001,3877.6,3877.5,3.1875813]
[1754603591195,4.06200001,3877.6,3877.5,2.7077813]
[1754603591612,1e-08,3877.6,3877.5,2.7077813]
[1754603591817,4.06200001,3877.6,3877.5,2.7077813]
[1754603593629,1e-08,3877.6,3877.5,3.1738613]
[1754603593804,4.06200001,3877.6,3877.5,3.1887813]
[1754603594226,1e-08,3877.6,3877.5,3.6273813]
[1754603594522,1e-08,3877.6,3877.5,8.4473813]
[1754603595020,1e-08,3877.6,3877.5,4.1773813]
[1754603597026,1e-08,3877.6,3877.5,3.7387813]
[1754603597228,1e-08,3877.8,3877.7,2.57884828]
[1754603597389,0.202,3878.0,3877.9,2.57871528]
[1754603597595,0.202,3878.0,3877.9,6.63971528]
[1754603597804,0.202,3878.0,3877.9,6.76851528]
[1754603598125,0.202,3878.0,3877.9,7.68811528]
[1754603598327,0.202,3878.0,3877.9,11.23811528]
[1754603598940,1e-08,3878.2,3878.1,3.12858229]
[1754603599230,0.002,3878.6,3878.5,2.57831635]
[1754603599394,0.002,3878.6,3878.5,6.12831635]
[1754603599708,0.002,3878.6,3878.5,7.17671635]
[1754603600512,0.002,3878.6,3878.5,7.04791635]
[1754603600727,0.04,3878.9,3878.8,3.12811694]
[1754603601027,4.1,3879.9,3879.1,3.12791755]
[1754603601217,4.1,3879.9,3879.1,7.18791755]
[1754603601525,4.1,3879.9,3879.1,8.10751755]
[1754603602043,4.1,3879.9,3879.1,11.10751755]
[1754603602423,0.04,3879.9,3879.1,11.10751755]
[1754603603340,1e-08,3879.4,3879.3,15.87543886]
[1754603603520,1e-08,3879.4,3879.3,19.93543886]
[1754603603693,1e-08,3879.4,3879.3,21.04485108]
[1754603605595,1e-08,3879.4,3879.3,4.23719687]
[1754603605796,1e-08,3879.4,3879.3,21.04385108]
[1754603606448,1e-08,3879.4,3879.3,20.60525108]
[1754603606948,1e-08,3879.4,3879.3,16.54625108]
[1754603607151,1e-08,3879.4,3879.3,6.82559687]
[1754603607442,0.43280001,3879.4,3879.3,6.82559687]
[1754603607652,0.43280001,3879.4,3879.3,10.37559687]
[1754603608234,1e-08,3879.4,3879.3,6.12778465]
[1754603608440,1e-08,3879.4,3879.3,10.29496618]